[Event "NJSK 2022 Jeugd A"]
[Site "Almelo, Netherlands"]
[Date "2022.05.07"]
[Round "7.7"]
[White "Visser, Berend"]
[Black "Hooijmans, Max"]
[Result "0-1"]
[TimeControl "90min/40moves + 30min + 30sec/move"]
[WhiteElo "1763"]
[BlackElo "1420"]

1. d4 {[%clk 01:30:59]} d5 {[%clk 01:30:54]} {[%emt 00:00:06]} 2. c4 {[%clk
01:31:26]} {[%emt 00:00:03]} e6 {[%clk 01:31:22]} {[%emt 00:00:02]} 3. Nf3
{[%clk 01:31:46]} {[%emt 00:00:10]} Nf6 {[%clk 01:31:31]} {[%emt 00:00:21]} 4.
Nc3 {[%clk 01:32:09]} {[%emt 00:00:07]} Bb4 {[%clk 01:31:53]} {[%emt 00:00:08]}
5. Bg5 {[%clk 01:32:33]} {[%emt 00:00:06]} h6 {[%clk 01:31:47]} {[%emt
00:00:35]} 6. Bh4 {[%clk 01:32:59]} {[%emt 00:00:07]} c6 {[%clk 01:30:36]}
{[%emt 00:01:40]} 7. e3 {[%clk 01:33:15]} {[%emt 00:00:13]} Nbd7 {[%clk
01:27:28]} {[%emt 00:03:38]} 8. cxd5 {[%clk 01:33:31]} {[%emt 00:00:15]} cxd5
{[%clk 01:27:22]} {[%emt 00:00:36]} 9. Bd3 {[%clk 01:33:53]} {[%emt 00:00:06]}
O-O {[%clk 01:23:51]} {[%emt 00:04:02]} 10. O-O {[%clk 01:34:06]} {[%emt
00:00:17]} Qa5 {[%clk 01:21:50]} {[%emt 00:02:31]} 11. Qc2 {[%clk 01:32:31]}
{[%emt 00:02:05]} Ne8 {[%clk 01:19:09]} {[%emt 00:03:12]} 12. a3 {[%clk
01:29:17]} {[%emt 00:03:44]} Bd6 {[%clk 01:17:39]} {[%emt 00:01:59]} 13. Nb5
{[%clk 01:28:15]} {[%emt 00:01:33]} Qb6 {[%clk 01:14:22]} {[%emt 00:03:47]} 14.
Rfe1 {[%clk 01:15:30]} {[%emt 00:13:15]} f5 {[%clk 01:13:35]} {[%emt 00:01:17]}
15. Nxd6 {[%clk 01:14:38]} {[%emt 00:01:22]} Nxd6 {[%clk 01:13:28]} {[%emt
00:00:37]} 16. Bg3 {[%clk 01:14:23]} {[%emt 00:00:45]} Nf6 {[%clk 01:10:26]}
{[%emt 00:03:32]} 17. Bxd6 {[%clk 01:05:37]} {[%emt 00:09:16]} Qxd6 {[%clk
01:10:49]} {[%emt 00:00:06]} 18. Ne5 {[%clk 01:06:01]} {[%emt 00:00:06]} Bd7
{[%clk 01:08:39]} {[%emt 00:02:40]} 19. Rac1 {[%clk 01:04:16]} {[%emt
00:02:16]} Rfc8 {[%clk 01:05:51]} {[%emt 00:03:18]} 20. Qb3 {[%clk 01:01:49]}
{[%emt 00:02:57]} Rxc1 {[%clk 01:01:44]} {[%emt 00:04:37]} 21. Rxc1 {[%clk
01:02:12]} {[%emt 00:00:06]} Rc8 {[%clk 01:02:08]} {[%emt 00:00:07]} 22. Rxc8+
{[%clk 01:01:21]} {[%emt 00:01:21]} Bxc8 {[%clk 01:02:29]} {[%emt 00:00:09]} 23.
Qc3 {[%clk 00:56:11]} {[%emt 00:05:39]} Bd7 {[%clk 01:02:03]} {[%emt 00:00:56]}
24. Qa5 {[%clk 00:55:34]} {[%emt 00:01:08]} Qb8 {[%clk 00:58:27]} {[%emt
00:04:06]} 25. Qb4 {[%clk 00:49:53]} {[%emt 00:06:11]} Qc7 {[%clk 00:57:21]}
{[%emt 00:01:35]} 26. h3 {[%clk 00:45:39]} {[%emt 00:04:45]} Be8 {[%clk
00:55:14]} {[%emt 00:02:37]} 27. Qd2 {[%clk 00:39:10]} {[%emt 00:06:59]} Nd7
{[%clk 00:53:10]} {[%emt 00:02:34]} 28. Nxd7 {[%clk 00:37:50]} {[%emt
00:01:50]} Bxd7 {[%clk 00:53:27]} {[%emt 00:00:12]} 29. g4 {[%clk 00:35:31]}
{[%emt 00:02:50]} Qd8 {[%clk 00:51:00]} {[%emt 00:02:57]} 30. gxf5 {[%clk
00:32:02]} {[%emt 00:03:59]} exf5 {[%clk 00:51:12]} {[%emt 00:00:18]} 31. Qc2
{[%clk 00:30:33]} {[%emt 00:01:59]} f4 {[%clk 00:48:32]} {[%emt 00:03:10]} 32.
Kh2 {[%clk 00:29:22]} {[%emt 00:01:40]} Qh4 {[%clk 00:42:53]} {[%emt 00:06:09]}
33. Bf1 {[%clk 00:29:15]} {[%emt 00:00:37]} f3 {[%clk 00:42:35]} {[%emt
00:00:49]} 34. b4 {[%clk 00:28:41]} {[%emt 00:01:04]} Bf5 {[%clk 00:35:21]}
{[%emt 00:07:43]} 35. Qa2 {[%clk 00:28:08]} {[%emt 00:01:04]} Kh8 {[%clk
00:35:31]} {[%emt 00:00:20]} 36. Qd2 {[%clk 00:28:02]} {[%emt 00:00:36]} g5
{[%clk 00:33:50]} {[%emt 00:02:10]} 37. Qb2 {[%clk 00:27:21]} {[%emt 00:01:12]}
Bxh3 {[%clk 00:32:54]} {[%emt 00:01:26]} 38. Qc2 {[%clk 00:25:32]} {[%emt
00:02:19]} Bg2+ {[%clk 00:32:52]} {[%emt 00:00:31]} 39. Kg1 {[%clk 00:25:08]}
{[%emt 00:00:55]} Qh1# {[%clk 00:32:42]} {[%emt 00:00:09]} 0-1